fUST/lending_fUST_20250822
["ID","MTS","AMOUNT","RATE_DAILY","PERIOD"]
[380590101,1755814257389,-166.25,0.00027246,2]
[380590103,1755814257398,-15011.22669738,0.00027246,30]
[380590105,1755814257407,-40000.0,0.00027246,2]
[380590107,1755814257417,-5077.13334765,0.00027246,30]
[380590109,1755814257426,-138281.01969225,0.00027246,20]
[380590111,1755814257436,-35219.8235886,0.00027246,2]
[380590113,1755814257445,-500.0,0.00027246,10]
[380590115,1755814257455,-500.0,0.00027246,10]
[380590117,1755814257464,-500.0,0.00027246,10]
[380590119,1755814257474,-500.0,0.00027246,10]
[380590121,1755814257484,-500.0,0.00027246,10]
[380590123,1755814257493,-500.0,0.00027246,10]
[380590125,1755814257502,-500.0,0.00027246,10]
[380590127,1755814257512,-500.0,0.00027246,10]
[380590129,1755814257521,-250.0,0.00027246,10]
[380590131,1755814257530,-250.0,0.00027246,10]
[380590133,1755814257539,-250.0,0.00027246,10]
[380590135,1755814257549,-361.991501,0.00027246,10]
[380590137,1755814257558,-490.1941642,0.00027246,7]
[380590139,1755814257567,-495.65,0.00027246,7]
[380590141,1755814257577,-600.0,0.00027264,2]
[380590152,1755814257586,-709.95,0.00027272,7]
[380590154,1755814257686,-800.0,0.00027273,2]
[380590156,1755814257695,-391.97789172,0.00027279,2]
[380590158,1755814257705,-203.0,0.000273,14]
[380590160,1755814257714,-700.0,0.00027308,2]
[380590162,1755814257723,-1000.0,0.00027315,60]
[380590164,1755814257733,-1000.0,0.00027315,60]
[380590166,1755814257743,-1000.0,0.00027315,60]
[380590168,1755814257752,-1000.0,0.00027315,60]
[380590170,1755814257761,-1000.0,0.00027315,60]
[380590172,1755814257772,-1000.0,0.00027315,60]
[380590174,1755814257781,-1000.0,0.00027315,60]
[380590176,1755814257791,-1000.0,0.00027315,60]
[380590178,1755814257806,-1000.0,0.00027315,60]
[380590179,1755814257814,-1000.0,0.00027315,60]
[380590182,1755814257824,-160.0,0.00027319,7]
[380590184,1755814257835,-161.10085219,0.00027319,5]
[380590185,1755814257845,-700.0,0.00027333,2]
[380590188,1755814257856,-250.0,0.00027335,60]
[380590190,1755814257867,-156.95,0.00027335,2]
[380590192,1755814257878,-350.0,0.0002734,60]
[380590194,1755814257890,-600.0,0.0002734,2]
[380590195,1755814257900,-498.6,0.00027347,60]
[380590197,1755814257910,-800.0,0.00027352,2]
[380590199,1755814257919,-1251.98682696,0.00027355,60]
[380590202,1755814257928,-709.95,0.00027372,7]
[380590203,1755814257938,-6813.36811788,0.00027383,7]
[380590205,1755814257947,-197.04170899,0.0002739,2]
[380590207,1755814257957,-160.77988825,0.0002739,7]
[380590209,1755814257966,-500.0,0.0002739,5]
[380590212,1755814257976,-907.0,0.00027396,60]
[380590213,1755814257985,-1157.6309381,0.00027397,30]
[380590216,1755814257995,-219.23462736,0.00027397,2]
[380590218,1755814258004,-150.0,0.00027397,30]
[380590220,1755814258014,-150.0,0.00027397,2]
[380590222,1755814258023,-1000.0,0.00027397,7]
[380590224,1755814258032,-1000.0,0.00027397,7]
[380590226,1755814258041,-1000.0,0.00027397,7]
[380590228,1755814258051,-1000.0,0.00027397,7]
[380590230,1755814258061,-161.08674186,0.00027397,2]
[380590232,1755814258070,-500.0,0.00027397,5]
[380590234,1755814258079,-300.0,0.00027397,5]
[380590236,1755814258088,-160.34636192,0.00027397,5]
[380590238,1755814258098,-500.0,0.00027397,5]
[380590240,1755814258107,-157.0,0.000274,60]
[380590242,1755814258116,-154.54641295,0.000274,4]
[380590244,1755814258126,-154.54641295,0.000274,4]
[380590245,1755814258136,-154.54641295,0.000274,4]
[380590247,1755814258145,-154.54,0.000274,4]
[380590248,1755814258154,-160.27035417,0.000274,4]
[380590250,1755814258164,-160.27035417,0.000274,4]
[380590252,1755814258174,-160.27035417,0.000274,4]
[380590254,1755814258183,-160.27035417,0.000274,4]
[380590256,1755814258193,-160.27035417,0.000274,4]
[380590258,1755814258202,-160.27035417,0.000274,4]
[380590260,1755814258212,-160.27035417,0.000274,4]
[380590262,1755814258221,-160.27035417,0.000274,4]
[380590264,1755814258231,-160.27,0.000274,4]
[380590266,1755814258240,-170.84083496,0.000274,4]
[380590268,1755814258249,-170.84083496,0.000274,4]
[380590270,1755814258258,-170.84083496,0.000274,4]
[380590272,1755814258268,-170.84083496,0.000274,4]
[380590274,1755814258277,-170.84083496,0.000274,4]
[380590276,1755814258286,-170.84,0.000274,4]
[380590278,1755814258295,-159.45144596,0.000274,4]
[380590280,1755814258305,-159.45144596,0.000274,4]
[380590282,1755814258314,-159.45144596,0.000274,4]
[380590284,1755814258323,-159.45144596,0.000274,4]
[380590286,1755814258333,-159.45144596,0.000274,4]
[380590288,1755814258342,-159.45144596,0.000274,4]
[380590290,1755814258352,-159.45144596,0.000274,4]
[380590292,1755814258361,-159.45144596,0.000274,4]
[380590294,1755814258371,-159.45144596,0.000274,4]
[380590296,1755814258379,-159.45144596,0.000274,4]
[380590298,1755814258389,-159.45144596,0.000274,4]
[380590300,1755814258397,-159.45144596,0.000274,4]
[380590302,1755814258406,-159.45144596,0.000274,4]
[380590304,1755814258416,-159.45144596,0.000274,4]
[380590307,1755814258426,-159.45,0.000274,4]
[380590309,1755814258435,-200.0,0.00027402,120]
[380590311,1755814258444,-150.0,0.00027414,120]
[380590313,1755814258454,-2439.58,0.00027419,60]
[380590315,1755814258464,-1000.0,0.0002742,60]
[380590316,1755814258473,-6940.0,0.00027421,60]
[380590319,1755814258486,-300.0,0.0002743,60]
[380590321,1755814258495,-354.0,0.0002743,60]
[380590323,1755814258505,-200.0,0.0002743,120]
[380590325,1755814258514,-500.0,0.00027436,2]
[380590326,1755814258523,-973.0,0.0002745,120]
[380590329,1755814258533,-200.0,0.00027453,120]
[380590330,1755814258542,-709.95,0.00027472,15]
[380590333,1755814258551,-200.0,0.00027487,120]
[380590335,1755814258561,-200.0,0.00027493,120]
[380590337,1755814258571,-4000.0,0.000275,2]
[380590338,1755814258580,-45184.13464889,0.000275,2]
[380590340,1755814258589,-1728.70811436,0.000275,4]
[380590342,1755814258598,-700.0,0.00027514,2]
[380590344,1755814258607,-200.0,0.00027518,120]
[380590346,1755814258616,-200.0,0.00027545,120]
[380590348,1755814258626,-350.0,0.00027568,5]
[380590350,1755814258635,-300.0,0.00027568,5]
[380590352,1755814258644,-709.95,0.00027572,15]
[380590354,1755814258654,-1360.0,0.00027575,2]
[380590356,1755814258664,-3865.0,0.00027579,2]
[380590358,1755814258673,-500.0,0.00027597,2]
[380590360,1755814258682,-46945.24,0.000276,2]
[380590362,1755814258691,-200.0,0.00027601,120]
[380590364,1755814258701,-700.0,0.00027605,2]
[380590366,1755814258710,-500.0,0.00027615,2]
[380590368,1755814258721,-200.0,0.00027639,120]
[380590370,1755814258730,-200.0,0.00027642,120]
[380590372,1755814258739,-600.0,0.00027645,2]
[380590374,1755814258748,-621.13,0.00027663,15]
[380590377,1755814258758,-1000.0,0.00027671,120]
[380590378,1755814258767,-709.95,0.00027672,15]
[380590380,1755814258777,-695.16,0.00027673,15]
[380590382,1755814258786,-200.0,0.00027676,120]
[380590384,1755814258800,-200.0,0.00027681,120]
[380590386,1755814258809,-200.0,0.00027683,120]
[380590388,1755814258819,-700.0,0.00027698,2]
[380590390,1755814258828,-200.0,0.000277,120]
[380590393,1755814258838,-200.0,0.000277,120]
[380590395,1755814258848,-5000.0,0.00027704,5]
[380590397,1755814258857,-675.7,0.00027719,15]
[380590399,1755814258868,-200.0,0.0002772,120]
[380590400,1755814258877,-200.0,0.00027731,120]
[380590402,1755814258887,-600.0,0.00027734,2]
[380590404,1755814258897,-200.0,0.00027743,120]
[380590406,1755814258907,-700.0,0.00027746,2]
[380590408,1755814258916,-500.0,0.0002775,2]
[380590410,1755814258925,-621.13,0.00027763,15]
[380590412,1755814258935,-200.0,0.0002777,120]
[380590414,1755814258944,-710.09,0.00027772,15]
[380590416,1755814258954,-695.16,0.00027773,15]
[380590418,1755814258963,-600.0,0.00027785,20]
[380590420,1755814258973,-200.0,0.00027793,120]
[380590422,1755814258982,-675.7,0.00027819,15]
[380590424,1755814258991,-700.0,0.00027823,2]
[380590426,1755814259001,-200.0,0.00027837,120]
[380590428,1755814259010,-200.0,0.0002784,120]
[380590430,1755814259020,-200.0,0.00027854,120]
[380590432,1755814259030,-724.57545386,0.00027856,2]
[380590434,1755814259039,-621.13,0.00027863,15]
[380590436,1755814259050,-695.37,0.00027873,15]
[380590438,1755814259059,-600.0,0.00027875,2]
[380590440,1755814259069,-1174.5456842,0.00027879,30]
[380590442,1755814259079,-321.2713938,0.00027879,30]
[380590444,1755814259088,-500.0,0.00027879,2]
[380590446,1755814259097,-200.0,0.00027895,120]
[380590448,1755814259106,-200.0,0.00027904,120]
[380590450,1755814259116,-675.91188509,0.00027919,15]
[380590451,1755814259125,-1673.8,0.00027939,2]
[380590453,1755814259134,-1000.0,0.00027945,120]
[380590454,1755814259143,-1000.0,0.00027945,5]
[380590456,1755814259153,-600.0,0.00027945,5]
[380590458,1755814259162,-200.0,0.00027953,120]
[380590460,1755814259172,-600.0,0.00027959,2]
[380590461,1755814259182,-621.13,0.00027963,15]
[380590463,1755814259191,-200.0,0.00027963,120]
[380590465,1755814259201,-1195.83962606,0.0002799,7]
[380590466,1755814259210,-200.0,0.00027998,120]
[380590468,1755814259219,-843.29866057,0.00028,3]
[380590469,1755814259229,-461.84428375,0.00028,3]
[380590471,1755814259238,-160.0,0.00028,3]
[380590473,1755814259248,-843.29866057,0.00028,3]
[380590474,1755814259257,-843.29866057,0.00028,3]
[380590476,1755814259266,-216.72950928,0.00028,3]
[380590478,1755814259275,-216.72950928,0.00028,3]
[380590479,1755814259284,-232.03317797,0.00028,3]
[380590481,1755814259294,-232.03317797,0.00028,3]
[380590483,1755814259303,-411559.81352107,0.00028,2]
[380590484,1755814259313,-375.88899365,0.00028,10]
[380590486,1755814259322,-528.45278,0.00028,120]
[380590488,1755814259331,-200.0,0.00028,120]
[380590489,1755814259340,-571.8157,0.00028,120]
[380590491,1755814259349,-200.0,0.00028,120]
[380590493,1755814259357,-545.48377,0.00028,120]
[380590494,1755814259367,-227.79213061,0.00028,120]
[380590496,1755814259376,-10000.0,0.00028,60]
[380590498,1755814259385,-495000.0,0.00028,20]
[380590499,1755814259394,-12690.45384448,0.00028,10]
[380590501,1755814259404,-1048.4,0.00028,2]
[380590503,1755814259413,-2432.046259,0.00028,2]
[380590504,1755814259422,-2700.0,0.00028,7]
[380590506,1755814259431,-200.0,0.00028,120]
[380590508,1755814259440,-1000.0,0.00028,120]
[380590509,1755814259449,-200.0,0.00028005,120]
[380590511,1755814259458,-600.0,0.00028019,2]
[380590513,1755814259467,-200.0,0.00028048,120]
[380590514,1755814259476,-200.0,0.00028049,120]
[380590516,1755814259485,-344.17451,0.00028056,2]
[380590517,1755814259494,-621.13,0.00028063,15]
[380590519,1755814259503,-200.0,0.00028086,120]
[380590521,1755814259512,-200.0,0.00028086,120]
[380590523,1755814259521,-1028.27466744,0.000281,10]
[380590524,1755814259530,-2276.2,0.000281,7]
[380590526,1755814259539,-407.73,0.000281,7]
[380590528,1755814259549,-5074.39,0.000281,7]
[380590529,1755814259558,-200.0,0.00028104,120]
[380590531,1755814259568,-827.68007192,0.00028114,2]
[380590533,1755814259577,-565.05177451,0.00028116,5]
[380590535,1755814259586,-1460.0,0.00028123,2]
[380590537,1755814259596,-621.13,0.00028163,15]
[380590538,1755814259605,-200.0,0.00028184,120]
[380590540,1755814259615,-700.0,0.00028186,2]
[380590542,1755814259624,-200.0,0.00028192,120]
[380590544,1755814259634,-700.0,0.00028192,2]
[380590545,1755814259644,-153.23458796,0.000282,20]
[380590547,1755814259653,-200.0,0.00028204,120]
[380590549,1755814259663,-600.0,0.00028209,2]
[380590551,1755814259673,-200.0,0.00028217,120]
[380590552,1755814259681,-199.0,0.00028219,5]
[380590554,1755814259691,-1000.0,0.00028219,120]
[380590556,1755814259702,-30124.7171521,0.00028246,120]
[380590558,1755814259712,-1220.3772507,0.00028246,10]
[380590560,1755814259722,-1354.0,0.00028246,120]
[380590562,1755814259731,-600.0,0.00028251,2]
[380590563,1755814259741,-5500.0,0.00028252,5]
[380590565,1755814259750,-200.0,0.00028259,120]
[380590567,1755814259759,-621.13,0.00028263,15]
[380590568,1755814259767,-700.0,0.00028273,2]
[380590570,1755814259777,-5000.0,0.00028279,4]
[380590572,1755814259786,-600.0,0.00028292,2]
[380590573,1755814259798,-700.0,0.00028306,2]
[380590582,1755814259893,-6813.36811788,0.00028319,9]
[380590584,1755814259903,-200.0,0.00028321,120]
[380590585,1755814259912,-200.0,0.00028346,120]
[380590587,1755814259921,-700.0,0.00028355,2]
[380590589,1755814259931,-621.13,0.00028363,15]
[380590591,1755814259940,-200.0,0.00028384,120]
[380590592,1755814259950,-200.0,0.00028405,120]
[380590594,1755814259959,-200.0,0.00028429,120]
[380590596,1755814259969,-600.0,0.00028433,2]
[380590598,1755814259978,-4000.0,0.00028435,4]
[380590600,1755814259987,-600.0,0.00028448,2]
[380590601,1755814259996,-500.0,0.00028462,2]
[380590603,1755814260005,-621.13,0.00028463,15]
[380590605,1755814260015,-200.0,0.00028468,120]
[380590607,1755814260024,-151.0,0.00028479,2]
[380590608,1755814260034,-200.0,0.00028485,120]
[380590610,1755814260043,-1000.0,0.00028493,120]
[380590612,1755814260054,-8748.7,0.00028493,8]
[380590614,1755814260064,-1283.03033517,0.00028493,5]
[380590616,1755814260074,-431.64882021,0.00028493,5]
[380590617,1755814260083,-200.0,0.00028498,120]
[380590619,1755814260093,-1587.11128451,0.000285,7]
[380590621,1755814260102,-1029.34,0.000285,120]
[380590623,1755814260112,-46945.24,0.000285,2]
[380590625,1755814260121,-200.70872352,0.000285,2]
[380590627,1755814260132,-1500.0,0.000285,2]
[380590628,1755814260141,-200.0,0.00028535,120]
[380590630,1755814260150,-621.13,0.00028563,15]
[380590632,1755814260160,-200.0,0.00028572,120]
[380590634,1755814260169,-200.0,0.00028585,120]
[380590635,1755814260179,-200.0,0.00028588,120]
[380590637,1755814260188,-200.0,0.00028596,120]
[380590639,1755814260197,-200.0,0.00028603,120]
[380590641,1755814260207,-581.1080994,0.00028608,30]
[380590643,1755814260216,-581.1080994,0.00028608,30]
[380590644,1755814260225,-581.1080994,0.00028608,30]
[380590646,1755814260237,-700.0,0.00028613,2]
[380590648,1755814260247,-200.0,0.00028621,120]
[380590650,1755814260257,-200.0,0.00028636,120]
[380590651,1755814260267,-200.0,0.00028642,120]
[380590653,1755814260276,-621.13,0.00028663,15]
[380590655,1755814260286,-1560.0,0.00028671,2]
[380590657,1755814260295,-4000.0,0.00028696,4]
[380590659,1755814260306,-181.0,0.000287,8]
[380590660,1755814260316,-700.0,0.00028715,2]
[380590662,1755814260326,-1287.00873739,0.00028716,2]
[380590664,1755814260335,-807.55572854,0.00028717,2]
[380590666,1755814260345,-917.85935797,0.00028734,2]
[380590668,1755814260354,-4000.0,0.0002876,5]
[380590669,1755814260363,-621.13,0.00028763,15]
[380590670,1755814260372,-1000.0,0.00028767,120]
[380590672,1755814260382,-1209.5,0.00028767,120]
[380590674,1755814260391,-1180.0,0.00028767,120]
[380590676,1755814260400,-150.0,0.00028767,120]
[380590677,1755814260409,-11334.73231972,0.00028769,120]
[380590679,1755814260419,-155.3783626,0.00028769,120]
[380590681,1755814260428,-200.0,0.0002878,120]
[380590683,1755814260439,-200.0,0.0002879,120]
[380590685,1755814260448,-167.94986364,0.000288,7]
[380590687,1755814260458,-2800.57393865,0.000288,7]
[380590688,1755814260468,-6000.0,0.000288,5]
[380590690,1755814260477,-200.0,0.00028805,120]
[380590692,1755814260486,-621.13,0.00028863,15]
[380590694,1755814260495,-199.0,0.00028904,6]
[380590696,1755814260504,-4000.0,0.00028957,4]
[380590697,1755814260513,-621.13,0.00028963,15]
[380590699,1755814260523,-843.29866057,0.00029,10]
[380590701,1755814260533,-216.72950928,0.00029,10]
[380590703,1755814260542,-160.0,0.00029,10]
[380590704,1755814260552,-232.03317797,0.00029,10]
[380590706,1755814260561,-232.03317797,0.00029,10]
[380590708,1755814260570,-875.18201583,0.00029,2]
[380590710,1755814260579,-301.71058,0.00029,120]
[380590712,1755814260588,-528.45278,0.00029,120]
[380590713,1755814260597,-327.39685,0.00029,120]
[380590715,1755814260606,-571.8157,0.00029,120]
[380590717,1755814260616,-200.0,0.00029,120]
[380590719,1755814260624,-200.0,0.00029,120]
[380590720,1755814260634,-202.79207,0.00029,120]
[380590722,1755814260643,-545.48377,0.00029,120]
[380590724,1755814260653,-9600.0,0.00029,120]
[380590726,1755814260662,-215.86710461,0.00029,120]
[380590727,1755814260672,-1500.0,0.00029,2]
[380590729,1755814260681,-150.0,0.00029029,2]
[380590731,1755814260690,-150.0,0.00029029,2]
[380590733,1755814260699,-973.0,0.00029029,2]
[380590735,1755814260708,-637.0,0.00029029,2]
[380590736,1755814260717,-2154.0,0.00029029,2]
[380590738,1755814260727,-1000.0,0.00029041,120]
[380590740,1755814260735,-621.13,0.00029063,15]
[380590742,1755814260746,-203.0,0.000291,30]
[380590743,1755814260755,-621.13,0.00029163,15]
[380590745,1755814260765,-2276.2,0.000292,7]
[380590747,1755814260774,-407.73,0.000292,7]
[380590749,1755814260784,-5074.39,0.000292,7]
[380590751,1755814260797,-4000.0,0.00029217,4]
[380590752,1755814260809,-1660.0,0.00029219,2]
[380590754,1755814260818,-6813.36811788,0.00029254,11]
[380590756,1755814260828,-621.13,0.00029263,15]
[380590758,1755814260838,-1000.0,0.00029284,7]
[380590759,1755814260848,-200.93774,0.000293,120]
[380590761,1755814260858,-200.0,0.000293,120]
[380590763,1755814260868,-1000.0,0.00029315,120]
[380590765,1755814260878,-1662.82878468,0.00029348,5]
[380590767,1755814260888,-621.44606525,0.00029363,15]
[380590768,1755814260897,-574.39,0.00029416,15]
[380590770,1755814260906,-581.1080994,0.0002943,30]
[380590772,1755814260916,-4000.0,0.00029478,4]
[380590774,1755814260925,-1613.0,0.0002948,2]
[380590776,1755814260934,-997.027702,0.000295,120]
[380590777,1755814260943,-668583.47356741,0.000295,30]
[380590779,1755814260953,-1500.0,0.000295,2]
[380590781,1755814260962,-574.39,0.00029516,15]
[380590783,1755814260972,-199.0,0.00029589,7]
[380590784,1755814260980,-1000.0,0.00029589,120]
[380590786,1755814260990,-972.190945,0.00029589,120]
[380590788,1755814260999,-204.0,0.000296,60]
[380590790,1755814261009,-574.39,0.00029616,15]
[380590792,1755814261018,-574.39,0.00029716,15]
[380590793,1755814261027,-458.9930017,0.00029739,4]
[380590795,1755814261037,-1760.0,0.00029767,2]
[380590797,1755814261046,-462.0,0.00029811,120]
[380590799,1755814261057,-574.39,0.00029816,15]
[380590801,1755814261066,-386.8603418,0.00029827,30]
[380590802,1755814261076,-386.8603418,0.00029827,30]
[380590804,1755814261086,-386.8603418,0.00029827,30]
[380590806,1755814261095,-386.8603418,0.00029827,30]
[380590808,1755814261105,-386.8603418,0.00029827,30]
[380590810,1755814261115,-323.6375601,0.00029827,30]
[380590812,1755814261124,-151.0,0.00029848,2]
[380590813,1755814261134,-1000.0,0.00029863,120]
[380590815,1755814261143,-193.21,0.000299,120]
[380590817,1755814261152,-574.39,0.00029916,15]
[380590819,1755814261162,-2092.25,0.00029935,2]
[380590820,1755814261171,-1000.0,0.00029999,5]
[380590822,1755814261180,-193.07583282,0.0003,3]
[380590824,1755814261190,-165.46,0.0003,5]
[380590826,1755814261199,-50000.0,0.0003,15]
[380590828,1755814261209,-8187.03479648,0.0003,10]
[380590829,1755814261218,-64821.0,0.0003,2]
[380590831,1755814261227,-160.0,0.0003,3]
[380590833,1755814261237,-402.90568609,0.0003,10]
[380590834,1755814261246,-1564.40710752,0.0003,10]
[380590836,1755814261256,-843.29866057,0.0003,3]
[380590838,1755814261265,-216.72950928,0.0003,3]
[380590840,1755814261275,-160.0,0.0003,3]
[380590841,1755814261284,-160.0,0.0003,3]
[380590843,1755814261293,-232.03317797,0.0003,3]
[380590845,1755814261303,-160.0,0.0003,3]
[380590847,1755814261312,-160.0,0.0003,10]
[380590849,1755814261321,-215.55264861,0.0003,3]
[380590850,1755814261330,-500.0,0.0003,14]
[380590852,1755814261340,-500.0,0.0003,14]
[380590854,1755814261349,-500.0,0.0003,14]
[380590856,1755814261359,-500.0,0.0003,14]
[380590858,1755814261368,-500.0,0.0003,17]
[380590859,1755814261378,-500.0,0.0003,14]
[380590861,1755814261387,-500.0,0.0003,14]
[380590863,1755814261396,-500.0,0.0003,14]
[380590865,1755814261406,-500.0,0.0003,14]
[380590867,1755814261415,-500.0,0.0003,14]
[380590868,1755814261425,-500.0,0.0003,14]
[380590870,1755814261435,-160.0,0.0003,5]
[380590872,1755814261444,-160.0,0.0003,120]
[380590874,1755814261454,-258.0,0.0003,2]
[380590876,1755814261463,-528.45278,0.0003,120]
[380590878,1755814261472,-416.78393562,0.0003,30]
[380590879,1755814261482,-200.0,0.0003,120]
[380590881,1755814261492,-400.0,0.0003,120]
[380590883,1755814261501,-571.8157,0.0003,120]
[380590885,1755814261511,-12687.94051737,0.0003,120]
[380590887,1755814261520,-200.0,0.0003,120]
[380590889,1755814261530,-545.48377,0.0003,120]
[380590890,1755814261539,-417.20416333,0.0003,120]
[380590892,1755814261549,-657.33892051,0.0003,120]
[380590894,1755814261558,-189.53135307,0.0003,120]
[380590896,1755814261568,-226.71163323,0.0003,120]
[380590897,1755814261578,-375.21874396,0.0003,120]
[380590899,1755814261587,-19301.58590011,0.0003,30]
[380590901,1755814261597,-1500.0,0.0003,120]
[380590903,1755814261606,-200.0,0.0003,2]
[380590905,1755814261616,-695.67657207,0.0003,120]
[380590907,1755814261625,-408.84822786,0.0003,120]
[380590908,1755814261635,-150.0,0.0003,10]
[380590910,1755814261644,-12690.45384448,0.0003,120]
[380590912,1755814261654,-7483.97894719,0.0003,15]
[380590914,1755814261664,-2818.33680489,0.0003,120]
[380590916,1755814261673,-528.88070896,0.0003,120]
[380590918,1755814261683,-528.88070896,0.0003,120]
[380590919,1755814261692,-1500.0,0.0003,2]
[380590921,1755814261701,-417.15472785,0.0003,120]
[380590923,1755814261710,-417.15472785,0.0003,120]
[380590925,1755814261720,-574.39,0.00030016,15]
[380590927,1755814261730,-574.39,0.00030116,15]
[380590928,1755814261739,-283.9578313,0.0003013,2]
[380590930,1755814261749,-854.95019889,0.0003013,15]
[380590932,1755814261759,-696.09116664,0.00030136,120]
[380590934,1755814261769,-310.6054395,0.00030137,120]
[380590936,1755814261779,-1803.15080664,0.00030137,120]
[380590938,1755814261789,-247.22630538,0.00030137,120]
[380590939,1755814261804,-213.324249,0.00030137,2]
[380590941,1755814261814,-1000.0,0.00030137,120]
[380590943,1755814261824,-6813.36811788,0.0003019,13]
[380590945,1755814261835,-968.26283822,0.000302,2]
[380590947,1755814261846,-35215.67306346,0.000302,9]
[380590948,1755814261855,-204.0,0.000302,90]
[380590958,1755814261951,-574.39,0.00030216,15]
[380590960,1755814261961,-293.9988399,0.00030238,30]
[380590962,1755814261971,-306.0,0.00030238,30]
[380590964,1755814261980,-293.9988399,0.00030238,30]
[380590965,1755814261989,-293.9988399,0.00030238,30]
[380590967,1755814261999,-243.351079,0.00030238,30]
[380590969,1755814262009,-1000.0,0.00030273,5]
[380590971,1755814262019,-199.0,0.00030273,8]
[380590973,1755814262028,-1403.2161808,0.00030315,2]
[380590975,1755814262037,-574.39,0.00030316,15]
[380590976,1755814262046,-574.39,0.00030416,15]
[380590978,1755814262055,-574.39,0.00030516,15]
[380590980,1755814262065,-1000.0,0.00030547,5]
[380590982,1755814262074,-720.0,0.00030564,20]
[380590984,1755814262084,-574.39,0.00030616,15]
[380590986,1755814262093,-8748.7,0.00030684,10]
[380590987,1755814262103,-574.39,0.00030716,15]
[380590989,1755814262112,-251.04683462,0.000308,120]
[380590991,1755814262122,-574.39,0.00030816,15]
[380590993,1755814262132,-1000.0,0.00030821,5]
[380590995,1755814262142,-349.21112,0.000309,120]
[380590997,1755814262152,-574.39,0.00030916,15]
[380590999,1755814262162,-1000.0,0.00030928,7]
[380591000,1755814262171,-199.0,0.00030958,9]
[380591002,1755814262181,-302.38589805,0.0003099,2]
[380591004,1755814262190,-500.0,0.00031,14]
[380591006,1755814262200,-157.0,0.00031,120]
[380591008,1755814262209,-528.45278,0.00031,120]
[380591010,1755814262219,-341.73342041,0.00031,100]
[380591012,1755814262228,-571.8157,0.00031,120]
[380591013,1755814262237,-260.63968,0.00031,120]
[380591015,1755814262247,-545.48377,0.00031,120]
[380591017,1755814262257,-250.0,0.00031,120]
[380591019,1755814262266,-150.0,0.00031,120]
[380591021,1755814262275,-160.0,0.00031,120]
[380591023,1755814262285,-232.28399145,0.00031,120]
[380591025,1755814262294,-46945.24,0.00031,2]
[380591026,1755814262303,-160.0,0.00031,120]
[380591028,1755814262312,-168.0,0.00031,120]
[380591030,1755814262322,-574.39,0.00031016,15]
[380591032,1755814262331,-1000.0,0.00031095,5]
[380591034,1755814262341,-574.39,0.00031116,15]
[380591036,1755814262351,-200.0,0.00031125,120]
[380591037,1755814262360,-200.0,0.00031125,120]
[380591039,1755814262369,-200.0,0.00031125,120]
[380591041,1755814262379,-200.0,0.00031125,120]
[380591043,1755814262388,-200.0,0.00031125,120]
[380591045,1755814262397,-200.0,0.00031125,120]
[380591046,1755814262406,-574.39,0.00031216,15]